[Event "Chessable Masters - Torneo preliminare"]
[White "Flores, Diego"]
[Black "Iniyan, P"]
[WhiteFideId "108049"]
[BlackFideId "25002767"]
[WhiteElo "2598"]
[BlackElo "2441"]
[Result "0-1"]
[Round "6"]
[TimeControl "600+2"]
[Date "2023.03.13"]
[WhiteClock "0:00:06"]
[BlackClock "0:01:36"]

1. c4 {[%clk 0:10:01]}  Nf6 {[%clk 0:10:01]} 2. Nc3 {[%clk 0:10:01]}  e5 {[%clk 0:10:02]} 3. Nf3 {[%clk 0:10:01]}  Nc6 {[%clk 0:10:03]} 4. e3 {[%clk 0:10:02]}  g6 {[%clk 0:10:02]} 5. d4 {[%clk 0:09:48]}  exd4 {[%clk 0:10:02]} 6. exd4 {[%clk 0:09:50]}  d6 {[%clk 0:10:01]} 7. Qe2+ {[%clk 0:09:13]}  Qe7 {[%clk 0:10:02]} 8. Nb5 {[%clk 0:08:52]}  Qxe2+ {[%clk 0:09:43]} 9. Bxe2 {[%clk 0:08:51]}  Kd7 {[%clk 0:09:22]} 10. d5 {[%clk 0:08:29]}  Ne5 {[%clk 0:08:37]} 11. Nxe5+ {[%clk 0:08:20]}  dxe5 {[%clk 0:08:39]} 12. O-O {[%clk 0:08:21]}  Ne4 {[%clk 0:07:39]} 13. Be3 {[%clk 0:06:52]}  a6 {[%clk 0:06:14]} 14. Nc3 {[%clk 0:06:42]}  Nxc3 {[%clk 0:06:12]} 15. bxc3 {[%clk 0:06:44]}  b6 {[%clk 0:06:05]} 16. f4 {[%clk 0:06:39]}  exf4 {[%clk 0:06:04]} 17. Bd4 {[%clk 0:06:14]}  Rg8 {[%clk 0:05:53]} 18. Rxf4 {[%clk 0:06:14]}  f5 {[%clk 0:05:54]} 19. g4 {[%clk 0:05:16]}  Bh6 {[%clk 0:05:31]} 20. Rf3 {[%clk 0:05:11]}  Re8 {[%clk 0:05:12]} 21. Rh3 {[%clk 0:04:52]}  Rxe2 {[%clk 0:04:55]} 22. Rxh6 {[%clk 0:04:53]}  fxg4 {[%clk 0:04:53]} 23. Rxh7+ {[%clk 0:04:50]}  Re7 {[%clk 0:04:38]} 24. Rh6 {[%clk 0:04:36]}  Bb7 {[%clk 0:04:11]} 25. Rxg6 {[%clk 0:04:36]}  b5 {[%clk 0:04:11]} 26. Rd1 {[%clk 0:03:57]}  Rae8 {[%clk 0:03:45]} 27. c5 {[%clk 0:03:45]}  Bxd5 {[%clk 0:03:39]} 28. c6+ {[%clk 0:02:10]}  Kc8 {[%clk 0:03:37]} 29. Bf6 {[%clk 0:02:11]}  Re1+ {[%clk 0:03:26]} 30. Rxe1 {[%clk 0:02:10]}  Rxe1+ {[%clk 0:03:28]} 31. Kf2 {[%clk 0:02:11]}  Ra1 {[%clk 0:02:47]} 32. Be5 {[%clk 0:01:52]}  Rxa2+ {[%clk 0:02:48]} 33. Ke3 {[%clk 0:01:53]}  Ra4 {[%clk 0:02:43]} 34. Rh6 {[%clk 0:00:17]}  Re4+ {[%clk 0:02:43]} 35. Kd3 {[%clk 0:00:16]}  Bxc6 {[%clk 0:02:44]} 36. Rxc6 {[%clk 0:00:13]}  Rxe5 {[%clk 0:02:41]} 37. Rxa6 {[%clk 0:00:14]}  Rh5 {[%clk 0:02:35]} 38. Rg6 {[%clk 0:00:14]}  Rh4 {[%clk 0:02:35]} 39. Kc2 {[%clk 0:00:10]}  Kb7 {[%clk 0:01:46]} 40. Kb3 {[%clk 0:00:07]}  c5 {[%clk 0:01:43]} 41. Rg5 {[%clk 0:00:04]}  Kb6 {[%clk 0:01:40]} 42. Ka3 {[%clk 0:00:04]}  Rh3 {[%clk 0:01:35]} 43. Kb3 {[%clk 0:00:03]}  b4 {[%clk 0:01:33]} 44. Rxg4 {[%clk 0:00:04]}  Rxc3+ {[%clk 0:01:33]} 45. Kb2 {[%clk 0:00:05]}  Rh3 {[%clk 0:01:35]} 46. Rg2 {[%clk 0:00:06]}  Kb5 {[%clk 0:01:36]} 0-1


[Site "Internet"]

[Event "Chessable Masters - Torneo preliminare"]
[White "Raja, Rithvik R"]
[Black "Xu, Yinglun"]
[WhiteFideId "35007394"]
[BlackFideId "8604940"]
[WhiteElo "2387"]
[BlackElo "2523"]
[Result "0-1"]
[Round "6"]
[TimeControl "600+2"]
[Date "2023.03.13"]
[WhiteClock "0:02:44"]
[BlackClock "0:01:04"]

1. c4 {[%clk 0:10:01]}  e6 {[%clk 0:09:59]} 2. Nc3 {[%clk 0:09:57]}  d5 {[%clk 0:09:54]} 3. d4 {[%clk 0:09:59]}  Nf6 {[%clk 0:09:54]} 4. cxd5 {[%clk 0:09:56]}  exd5 {[%clk 0:09:56]} 5. Bg5 {[%clk 0:09:56]}  Be7 {[%clk 0:09:54]} 6. e3 {[%clk 0:09:56]}  h6 {[%clk 0:09:56]} 7. Bh4 {[%clk 0:09:51]}  c6 {[%clk 0:09:56]} 8. Bd3 {[%clk 0:09:52]}  O-O {[%clk 0:09:57]} 9. h3 {[%clk 0:09:39]}  a5 {[%clk 0:09:39]} 10. Qc2 {[%clk 0:09:35]}  Re8 {[%clk 0:09:26]} 11. Nf3 {[%clk 0:09:19]}  Nbd7 {[%clk 0:07:34]} 12. O-O-O {[%clk 0:09:12]}  b5 {[%clk 0:07:30]} 13. Kb1 {[%clk 0:09:11]}  a4 {[%clk 0:07:11]} 14. g4 {[%clk 0:08:57]}  Ne4 {[%clk 0:06:09]} 15. Bxe7 {[%clk 0:07:17]}  Qxe7 {[%clk 0:05:28]} 16. Bxe4 {[%clk 0:05:50]}  dxe4 {[%clk 0:05:18]} 17. Nd2 {[%clk 0:05:48]}  Nf6 {[%clk 0:04:53]} 18. Rc1 {[%clk 0:05:50]}  a3 {[%clk 0:03:20]} 19. b3 {[%clk 0:05:48]}  Ba6 {[%clk 0:03:01]} 20. Ka1 {[%clk 0:05:41]}  c5 {[%clk 0:02:49]} 21. dxc5 {[%clk 0:04:49]}  b4 {[%clk 0:02:47]} 22. Ndb1 {[%clk 0:03:43]}  Rac8 {[%clk 0:02:01]} 23. Na4 {[%clk 0:03:23]}  Qe5+ {[%clk 0:01:43]} 24. Nbc3 {[%clk 0:03:21]}  Bb5 {[%clk 0:01:21]} 25. f4 {[%clk 0:02:41]}  exf3 {[%clk 0:01:22]} 26. Kb1 {[%clk 0:02:42]}  bxc3 {[%clk 0:01:15]} 27. Nxc3 {[%clk 0:02:44]}  Rxc5 {[%clk 0:01:13]} 28. Qd2 {[%clk 0:02:43]}  Ne4 {[%clk 0:01:05]} 29. Nxe4 {[%clk 0:02:42]}  Qxe4+ {[%clk 0:01:06]} 30. Ka1 {[%clk 0:02:44]}  Qe5+ {[%clk 0:01:07]} 31. Kb1 {[%clk 0:02:44]}  Bd3+ {[%clk 0:01:04]} 0-1


[Site "Internet"]

[Event "Chessable Masters - Torneo preliminare"]
[White "Neiksans, Arturs"]
[Black "Pranav, V"]
[WhiteFideId "11601388"]
[BlackFideId "25060783"]
[WhiteElo "2553"]
[BlackElo "2462"]
[Result "1-0"]
[Round "6"]
[TimeControl "600+2"]
[Date "2023.03.13"]
[WhiteClock "0:00:31"]
[BlackClock "0:00:12"]

1. e4 {[%clk 0:10:01]}  e5 {[%clk 0:10:01]} 2. Nf3 {[%clk 0:10:01]}  Nc6 {[%clk 0:10:02]} 3. Bb5 {[%clk 0:10:02]}  a6 {[%clk 0:10:03]} 4. Ba4 {[%clk 0:10:03]}  Nf6 {[%clk 0:10:05]} 5. O-O {[%clk 0:10:04]}  b5 {[%clk 0:10:06]} 6. Bb3 {[%clk 0:10:05]}  Bb7 {[%clk 0:10:08]} 7. d3 {[%clk 0:10:02]}  Be7 {[%clk 0:10:08]} 8. Nc3 {[%clk 0:09:49]}  O-O {[%clk 0:10:07]} 9. a3 {[%clk 0:09:49]}  d6 {[%clk 0:10:07]} 10. Nd5 {[%clk 0:09:35]}  Na5 {[%clk 0:09:58]} 11. Ba2 {[%clk 0:09:27]}  c5 {[%clk 0:09:33]} 12. Nxe7+ {[%clk 0:09:16]}  Qxe7 {[%clk 0:09:32]} 13. Bg5 {[%clk 0:09:17]}  h6 {[%clk 0:09:13]} 14. Bh4 {[%clk 0:09:18]}  Nc6 {[%clk 0:09:05]} 15. c3 {[%clk 0:08:21]}  Nd8 {[%clk 0:09:00]} 16. Re1 {[%clk 0:08:19]}  Ne6 {[%clk 0:08:59]} 17. d4 {[%clk 0:07:54]}  cxd4 {[%clk 0:08:54]} 18. cxd4 {[%clk 0:07:55]}  Nf4 {[%clk 0:08:35]} 19. Rc1 {[%clk 0:06:45]}  Rac8 {[%clk 0:08:24]} 20. Bb1 {[%clk 0:05:49]}  g5 {[%clk 0:08:10]} 21. Bg3 {[%clk 0:05:43]}  Ng6 {[%clk 0:08:11]} 22. Rxc8 {[%clk 0:05:23]}  Bxc8 {[%clk 0:08:00]} 23. Nd2 {[%clk 0:05:21]}  h5 {[%clk 0:07:19]} 24. f3 {[%clk 0:05:10]}  h4 {[%clk 0:07:19]} 25. Bf2 {[%clk 0:05:12]}  g4 {[%clk 0:07:20]} 26. Nf1 {[%clk 0:04:57]}  h3 {[%clk 0:06:59]} 27. Ne3 {[%clk 0:04:25]}  hxg2 {[%clk 0:06:45]} 28. fxg4 {[%clk 0:04:19]}  exd4 {[%clk 0:05:45]} 29. Nf5 {[%clk 0:04:15]}  Qd8 {[%clk 0:03:33]} 30. Bxd4 {[%clk 0:04:14]}  Ne5 {[%clk 0:03:33]} 31. Re3 {[%clk 0:03:42]}  Re8 {[%clk 0:03:14]} 32. Nh6+ {[%clk 0:02:55]}  Kf8 {[%clk 0:03:09]} 33. g5 {[%clk 0:02:52]}  Nfg4 {[%clk 0:03:01]} 34. Rg3 {[%clk 0:02:41]}  f5 {[%clk 0:02:17]} 35. exf5 {[%clk 0:02:14]}  Bb7 {[%clk 0:00:17]} 36. Nxg4 {[%clk 0:01:55]}  Nxg4 {[%clk 0:00:18]} 37. Rxg4 {[%clk 0:01:54]}  Qe7 {[%clk 0:00:19]} 38. Bf2 {[%clk 0:01:24]}  Qe5 {[%clk 0:00:19]} 39. g6 {[%clk 0:00:57]}  Re7 {[%clk 0:00:11]} 40. g7+ {[%clk 0:00:54]}  Kg8 {[%clk 0:00:10]} 41. Ba2+ {[%clk 0:00:46]}  d5 {[%clk 0:00:11]} 42. f6 {[%clk 0:00:39]}  Qxf6 {[%clk 0:00:10]} 43. Bxd5+ {[%clk 0:00:38]}  Bxd5 {[%clk 0:00:11]} 44. Qxd5+ {[%clk 0:00:39]}  Rf7 {[%clk 0:00:13]} 45. Qxg2 {[%clk 0:00:32]}  Qxb2 {[%clk 0:00:12]} 46. Qa8+ {[%clk 0:00:31]} 1-0


[Site "Internet"]

[Event "Chessable Masters - Torneo preliminare"]
[White "Salgado Lopez, Ivan"]
[Black "Maghsoodloo, Parham"]
[WhiteFideId "2257327"]
[BlackFideId "12539929"]
[WhiteElo "2554"]
[BlackElo "2660"]
[Result "1-0"]
[Round "6"]
[TimeControl "600+2"]
[Date "2023.03.13"]
[WhiteClock "0:01:48"]
[BlackClock "0:05:31"]

1. e4 {[%clk 0:09:53]}  d6 {[%clk 0:10:00]} 2. d4 {[%clk 0:09:53]}  Nf6 {[%clk 0:10:01]} 3. Nc3 {[%clk 0:09:54]}  g6 {[%clk 0:09:59]} 4. f4 {[%clk 0:09:56]}  Bg7 {[%clk 0:09:58]} 5. Nf3 {[%clk 0:09:57]}  O-O {[%clk 0:09:57]} 6. Bd3 {[%clk 0:09:57]}  Nc6 {[%clk 0:09:57]} 7. e5 {[%clk 0:09:48]}  Nd7 {[%clk 0:09:39]} 8. O-O {[%clk 0:09:02]}  Nb4 {[%clk 0:09:32]} 9. Bc4 {[%clk 0:08:42]}  c5 {[%clk 0:09:17]} 10. exd6 {[%clk 0:07:12]}  exd6 {[%clk 0:09:15]} 11. dxc5 {[%clk 0:07:01]}  Nxc5 {[%clk 0:09:15]} 12. a3 {[%clk 0:06:54]}  Nc6 {[%clk 0:09:14]} 13. Nd5 {[%clk 0:06:45]}  h6 {[%clk 0:08:55]} 14. Kh1 {[%clk 0:06:36]}  Be6 {[%clk 0:08:53]} 15. c3 {[%clk 0:06:33]}  a5 {[%clk 0:08:48]} 16. a4 {[%clk 0:06:27]}  Rc8 {[%clk 0:08:42]} 17. Be3 {[%clk 0:06:20]}  Nb8 {[%clk 0:08:29]} 18. Nd4 {[%clk 0:06:00]}  Nbd7 {[%clk 0:08:28]} 19. f5 {[%clk 0:05:46]}  Bxd5 {[%clk 0:08:28]} 20. Bxd5 {[%clk 0:05:42]}  Nf6 {[%clk 0:08:21]} 21. Nb5 {[%clk 0:05:18]}  g5 {[%clk 0:08:15]} 22. Nxd6 {[%clk 0:04:42]}  Rc7 {[%clk 0:07:25]} 23. Ba2 {[%clk 0:04:05]}  Qe7 {[%clk 0:07:19]} 24. Re1 {[%clk 0:03:52]}  Nce4 {[%clk 0:06:30]} 25. Nxe4 {[%clk 0:03:50]}  Qxe4 {[%clk 0:06:31]} 26. Bb6 {[%clk 0:03:20]}  Qc6 {[%clk 0:06:29]} 27. Bxc7 {[%clk 0:03:18]}  Qxc7 {[%clk 0:06:31]} 28. Qe2 {[%clk 0:03:08]}  Qc5 {[%clk 0:06:24]} 29. Rad1 {[%clk 0:03:01]}  Qxf5 {[%clk 0:06:07]} 30. Rf1 {[%clk 0:03:01]}  Qc5 {[%clk 0:06:04]} 31. Qb5 {[%clk 0:02:56]}  Qc7 {[%clk 0:06:04]} 32. Qf5 {[%clk 0:02:46]}  Kh8 {[%clk 0:05:59]} 33. Rfe1 {[%clk 0:02:44]}  Qb6 {[%clk 0:05:55]} 34. Bb1 {[%clk 0:02:36]}  Kg8 {[%clk 0:05:45]} 35. Rf1 {[%clk 0:02:21]}  Re8 {[%clk 0:05:42]} 36. Qb5 {[%clk 0:02:16]}  Qe3 {[%clk 0:05:35]} 37. Qxb7 {[%clk 0:02:12]}  Re6 {[%clk 0:05:33]} 38. Ba2 {[%clk 0:02:05]}  Re7 {[%clk 0:05:30]} 39. Qa8+ {[%clk 0:01:59]}  Bf8 {[%clk 0:05:31]} 40. Rxf6 {[%clk 0:01:48]} 1-0


[Site "Internet"]

[Event "Chessable Masters - Torneo preliminare"]
[White "Lenderman, Aleksandr"]
[Black "Mekhitarian, Krikor Sevag"]
[WhiteFideId "2021285"]
[BlackFideId "2107660"]
[WhiteElo "2646"]
[BlackElo "2594"]
[Result "1-0"]
[Round "6"]
[TimeControl "600+2"]
[Date "2023.03.13"]
[WhiteClock "0:04:24"]
[BlackClock "0:00:06"]

1. Nf3 {[%clk 0:10:01]}  d5 {[%clk 0:09:55]} 2. e3 {[%clk 0:10:02]}  Nf6 {[%clk 0:09:50]} 3. c4 {[%clk 0:10:03]}  e6 {[%clk 0:09:50]} 4. b3 {[%clk 0:10:02]}  Bd6 {[%clk 0:09:46]} 5. Bb2 {[%clk 0:10:03]}  b6 {[%clk 0:09:45]} 6. Nc3 {[%clk 0:10:02]}  a6 {[%clk 0:09:41]} 7. g3 {[%clk 0:10:02]}  Bb7 {[%clk 0:09:39]} 8. Bg2 {[%clk 0:10:03]}  Nbd7 {[%clk 0:09:35]} 9. O-O {[%clk 0:10:03]}  O-O {[%clk 0:09:30]} 10. Rc1 {[%clk 0:09:48]}  Re8 {[%clk 0:08:45]} 11. cxd5 {[%clk 0:09:44]}  exd5 {[%clk 0:08:45]} 12. Ne2 {[%clk 0:09:45]}  c6 {[%clk 0:07:32]} 13. Ned4 {[%clk 0:09:44]}  Rc8 {[%clk 0:07:33]} 14. Qc2 {[%clk 0:09:36]}  a5 {[%clk 0:07:28]} 15. Rfd1 {[%clk 0:09:34]}  Ne5 {[%clk 0:07:01]} 16. Nxe5 {[%clk 0:09:24]}  Bxe5 {[%clk 0:07:01]} 17. Nf3 {[%clk 0:09:23]}  Bxb2 {[%clk 0:06:58]} 18. Qxb2 {[%clk 0:09:23]}  Qd6 {[%clk 0:06:34]} 19. d4 {[%clk 0:09:17]}  Re7 {[%clk 0:06:35]} 20. Rc2 {[%clk 0:09:13]}  Rec7 {[%clk 0:06:34]} 21. Rdc1 {[%clk 0:09:10]}  Ne4 {[%clk 0:05:47]} 22. Nd2 {[%clk 0:08:29]}  Nxd2 {[%clk 0:05:41]} 23. Rxd2 {[%clk 0:08:29]}  Ba6 {[%clk 0:04:10]} 24. Rdc2 {[%clk 0:08:22]}  g6 {[%clk 0:04:07]} 25. Rc3 {[%clk 0:08:21]}  f5 {[%clk 0:03:41]} 26. Qd2 {[%clk 0:08:13]}  Kg7 {[%clk 0:03:40]} 27. Bf3 {[%clk 0:08:11]}  Re8 {[%clk 0:03:32]} 28. Kg2 {[%clk 0:08:08]}  Rec8 {[%clk 0:03:33]} 29. h3 {[%clk 0:08:05]}  Rf8 {[%clk 0:03:25]} 30. R1c2 {[%clk 0:08:04]}  Rf6 {[%clk 0:03:15]} 31. Qc1 {[%clk 0:08:04]}  Rc8 {[%clk 0:03:06]} 32. Bd1 {[%clk 0:07:49]}  Rc7 {[%clk 0:03:05]} 33. f4 {[%clk 0:07:50]}  Bb7 {[%clk 0:02:53]} 34. Bf3 {[%clk 0:07:39]}  Re7 {[%clk 0:02:54]} 35. Kf2 {[%clk 0:07:36]}  Rfe6 {[%clk 0:02:53]} 36. Qd2 {[%clk 0:07:31]}  b5 {[%clk 0:02:45]} 37. Rc1 {[%clk 0:06:48]}  b4 {[%clk 0:02:43]} 38. Rc5 {[%clk 0:06:49]}  Rxe3 {[%clk 0:02:27]} 39. Rxa5 {[%clk 0:06:22]}  g5 {[%clk 0:02:02]} 40. Qxe3 {[%clk 0:06:22]}  Rxe3 {[%clk 0:02:01]} 41. Kxe3 {[%clk 0:06:24]}  gxf4+ {[%clk 0:01:37]} 42. gxf4 {[%clk 0:06:26]}  Qe7+ {[%clk 0:01:12]} 43. Kd3 {[%clk 0:06:25]}  Qd8 {[%clk 0:00:58]} 44. Ra4 {[%clk 0:06:21]}  Qb6 {[%clk 0:00:57]} 45. Ke3 {[%clk 0:06:08]}  Ba6 {[%clk 0:00:51]} 46. Rc5 {[%clk 0:06:05]}  Bb5 {[%clk 0:00:39]} 47. Ra8 {[%clk 0:06:06]}  Qb7 {[%clk 0:00:35]} 48. Re8 {[%clk 0:06:06]}  Qa7 {[%clk 0:00:33]} 49. Rc2 {[%clk 0:06:06]}  c5 {[%clk 0:00:26]} 50. Rc8 {[%clk 0:06:01]}  Qe7+ {[%clk 0:00:17]} 51. Kf2 {[%clk 0:05:51]}  Qh4+ {[%clk 0:00:07]} 52. Kg2 {[%clk 0:05:51]}  Qe1 {[%clk 0:00:08]} 53. R8xc5 {[%clk 0:05:29]}  Qf1+ {[%clk 0:00:04]} 54. Kg3 {[%clk 0:05:28]}  Qe1+ {[%clk 0:00:05]} 55. Kh2 {[%clk 0:05:25]}  Bd3 {[%clk 0:00:04]} 56. Rg2+ {[%clk 0:05:01]}  Kf6 {[%clk 0:00:05]} 57. Rc6+ {[%clk 0:04:45]}  Ke7 {[%clk 0:00:06]} 58. Rc7+ {[%clk 0:04:23]}  Kd6 {[%clk 0:00:06]} 59. Rxh7 {[%clk 0:04:24]} 1-0


[Site "Internet"]

[Event "Chessable Masters - Torneo preliminare"]
[White "Guseinov, Gadir"]
[Black "Golubev, Mikhail"]
[WhiteFideId "13401378"]
[BlackFideId "14100983"]
[WhiteElo "2632"]
[BlackElo "2361"]
[Result "1-0"]
[Round "6"]
[TimeControl "600+2"]
[Date "2023.03.13"]
[WhiteClock "0:08:42"]
[BlackClock "0:00:06"]

1. e4 {[%clk 0:10:01]}  c5 {[%clk 0:10:00]} 2. Nc3 {[%clk 0:10:02]}  Nc6 {[%clk 0:09:55]} 3. Bb5 {[%clk 0:10:02]}  Nd4 {[%clk 0:09:54]} 4. Nf3 {[%clk 0:10:03]}  a6 {[%clk 0:09:40]} 5. Bd3 {[%clk 0:10:03]}  Nc6 {[%clk 0:08:11]} 6. O-O {[%clk 0:10:03]}  g6 {[%clk 0:08:08]} 7. e5 {[%clk 0:09:59]}  Bg7 {[%clk 0:08:08]} 8. Re1 {[%clk 0:10:01]}  Nh6 {[%clk 0:07:53]} 9. Be4 {[%clk 0:10:02]}  Nd4 {[%clk 0:07:27]} 10. Nd5 {[%clk 0:09:46]}  Ne6 {[%clk 0:03:20]} 11. c3 {[%clk 0:09:33]}  O-O {[%clk 0:03:14]} 12. d4 {[%clk 0:09:34]}  cxd4 {[%clk 0:02:58]} 13. cxd4 {[%clk 0:09:35]}  d6 {[%clk 0:02:49]} 14. h3 {[%clk 0:09:35]}  dxe5 {[%clk 0:02:31]} 15. dxe5 {[%clk 0:09:37]}  f5 {[%clk 0:00:56]} 16. Bc2 {[%clk 0:09:31]}  Nf7 {[%clk 0:00:45]} 17. b3 {[%clk 0:09:25]}  b5 {[%clk 0:00:33]} 18. b4 {[%clk 0:09:14]}  Ra7 {[%clk 0:00:23]} 19. Nf4 {[%clk 0:08:45]}  Nxf4 {[%clk 0:00:11]} 20. Bxf4 {[%clk 0:08:46]}  Be6 {[%clk 0:00:12]} 21. Nd4 {[%clk 0:08:44]}  Rd7 {[%clk 0:00:06]} 22. Nxe6 {[%clk 0:08:41]}  Rxd1 {[%clk 0:00:06]} 23. Raxd1 {[%clk 0:08:42]} 1-0


[Site "Internet"]

[Event "Chessable Masters - Torneo preliminare"]
[White "Hambleton, Aman"]
[Black "Rustemov, Alexander"]
[WhiteFideId "2606577"]
[BlackFideId "4119002"]
[WhiteElo "2447"]
[BlackElo "2494"]
[Result "1-0"]
[Round "6"]
[TimeControl "600+2"]
[Date "2023.03.13"]
[WhiteClock "0:00:07"]
[BlackClock "0:00:09"]

1. d4 {[%clk 0:10:01]}  d5 {[%clk 0:09:56]} 2. Bf4 {[%clk 0:10:00]}  Nf6 {[%clk 0:09:56]} 3. e3 {[%clk 0:10:00]}  c5 {[%clk 0:09:57]} 4. c3 {[%clk 0:10:01]}  Nc6 {[%clk 0:09:51]} 5. Nd2 {[%clk 0:10:02]}  cxd4 {[%clk 0:09:44]} 6. exd4 {[%clk 0:10:04]}  Bg4 {[%clk 0:09:42]} 7. Qb3 {[%clk 0:10:04]}  Qc8 {[%clk 0:09:19]} 8. h3 {[%clk 0:09:58]}  Bh5 {[%clk 0:08:38]} 9. Ngf3 {[%clk 0:09:59]}  e6 {[%clk 0:08:23]} 10. Bd3 {[%clk 0:09:58]}  Be7 {[%clk 0:08:15]} 11. O-O {[%clk 0:09:59]}  O-O {[%clk 0:08:14]} 12. Rfe1 {[%clk 0:10:00]}  a6 {[%clk 0:08:08]} 13. a4 {[%clk 0:09:56]}  Bg6 {[%clk 0:08:06]} 14. Bxg6 {[%clk 0:09:51]}  hxg6 {[%clk 0:08:06]} 15. Ne5 {[%clk 0:09:08]}  Nxe5 {[%clk 0:07:45]} 16. Bxe5 {[%clk 0:09:10]}  Nd7 {[%clk 0:07:26]} 17. Bf4 {[%clk 0:08:58]}  Qc6 {[%clk 0:07:25]} 18. a5 {[%clk 0:08:06]}  Rfc8 {[%clk 0:07:19]} 19. Qa4 {[%clk 0:07:34]}  Qxa4 {[%clk 0:06:09]} 20. Rxa4 {[%clk 0:07:33]}  Rc6 {[%clk 0:06:11]} 21. Kf1 {[%clk 0:07:02]}  Rac8 {[%clk 0:05:23]} 22. Ke2 {[%clk 0:05:49]}  g5 {[%clk 0:05:22]} 23. Bg3 {[%clk 0:05:49]}  f6 {[%clk 0:05:23]} 24. Kd3 {[%clk 0:05:49]}  Kf7 {[%clk 0:05:23]} 25. Nf1 {[%clk 0:05:31]}  Nf8 {[%clk 0:05:22]} 26. Rc1 {[%clk 0:05:17]}  Ng6 {[%clk 0:05:22]} 27. Ne3 {[%clk 0:05:10]}  Bd6 {[%clk 0:05:21]} 28. Bxd6 {[%clk 0:04:41]}  Rxd6 {[%clk 0:05:21]} 29. Rb4 {[%clk 0:04:40]}  Rc7 {[%clk 0:05:20]} 30. Kd2 {[%clk 0:04:07]}  Nf4 {[%clk 0:05:15]} 31. Ra1 {[%clk 0:03:35]}  Ke7 {[%clk 0:05:09]} 32. Ra3 {[%clk 0:03:35]}  Kd8 {[%clk 0:05:08]} 33. Rab3 {[%clk 0:03:33]}  Kc8 {[%clk 0:05:09]} 34. Rb6 {[%clk 0:03:22]}  Rxb6 {[%clk 0:05:01]} 35. Rxb6 {[%clk 0:03:24]}  Re7 {[%clk 0:04:33]} 36. b3 {[%clk 0:03:15]}  Kc7 {[%clk 0:03:40]} 37. Rb4 {[%clk 0:03:05]}  Rd7 {[%clk 0:03:25]} 38. Ra4 {[%clk 0:02:38]}  e5 {[%clk 0:03:07]} 39. Rb4 {[%clk 0:02:17]}  exd4 {[%clk 0:03:02]} 40. Rxd4 {[%clk 0:01:22]}  Kc6 {[%clk 0:03:01]} 41. h4 {[%clk 0:01:19]}  Ne6 {[%clk 0:02:57]} 42. Rb4 {[%clk 0:01:20]}  Kc7 {[%clk 0:02:25]} 43. hxg5 {[%clk 0:00:51]}  Nxg5 {[%clk 0:02:25]} 44. f3 {[%clk 0:00:35]}  Ne6 {[%clk 0:02:17]} 45. Nc2 {[%clk 0:00:33]}  g5 {[%clk 0:02:08]} 46. Nd4 {[%clk 0:00:09]}  Nxd4 {[%clk 0:02:02]} 47. Rxd4 {[%clk 0:00:09]}  Kc6 {[%clk 0:01:53]} 48. Rb4 {[%clk 0:00:07]}  Kc7 {[%clk 0:01:22]} 49. Kd3 {[%clk 0:00:07]}  Rh7 {[%clk 0:01:16]} 50. Rb6 {[%clk 0:00:05]}  f5 {[%clk 0:00:25]} 51. Rg6 {[%clk 0:00:04]}  g4 {[%clk 0:00:22]} 52. fxg4 {[%clk 0:00:03]}  fxg4 {[%clk 0:00:20]} 53. Rxg4 {[%clk 0:00:05]}  Rh1 {[%clk 0:00:17]} 54. Rg6 {[%clk 0:00:03]}  Rd1+ {[%clk 0:00:16]} 55. Kc2 {[%clk 0:00:04]}  Rg1 {[%clk 0:00:16]} 56. b4 {[%clk 0:00:05]}  Kd7 {[%clk 0:00:17]} 57. Kd3 {[%clk 0:00:05]}  Rd1+ {[%clk 0:00:17]} 58. Ke3 {[%clk 0:00:05]}  Kc7 {[%clk 0:00:13]} 59. g4 {[%clk 0:00:05]}  Kd7 {[%clk 0:00:12]} 60. Rb6 {[%clk 0:00:05]}  Kc7 {[%clk 0:00:12]} 61. g5 {[%clk 0:00:05]}  Rg1 {[%clk 0:00:09]} 62. g6 {[%clk 0:00:07]}  Rg4 {[%clk 0:00:09]} 63. Rf6 {[%clk 0:00:06]}  Kd7 {[%clk 0:00:08]} 64. Kf3 {[%clk 0:00:06]}  Rg1 {[%clk 0:00:09]} 65. Kf4 {[%clk 0:00:07]} 1-0


[Site "Internet"]